[Event "FIDE Chesscom Online Nations Cup"]
[White "Koneru, Humpy"]
[Black "Girya, Olga"]
[Site "Online"]
[Round "10"]
[Annotator "ChessBase"]
[Result "1-0"]
[Date "2020.05.09"]
[WhiteElo "2483"]
[BlackElo "2471"]
[PlyCount "201"]
[TimeControl "1500+10"]

1. d4 {[%emt 0:0:2]} Nf6 {[%emt 0:0:4]} 2. c4 {[%emt 0:0:4]} e6 {[%emt 0:0:0]} 3. Nf3 {[%emt 0:0:8]} d5 {[%emt 0:0:2]} 4. Nc3 {[%emt 0:0:18]} Bb4 {[%emt 0:0:2]} 5. Bg5 {[%emt 0:0:20]} h6 {[%emt 0:0:4]} 6. Bxf6 {[%emt 0:0:0]} Qxf6 {[%emt 0:0:1]} 7. Qb3 {[%emt 0:0:38]} c5 {[%emt 0:0:20]} 8. cxd5 {[%emt 0:0:16]} exd5 {[%emt 0:0:2]} 9. a3 {[%emt 0:0:52]} Bxc3+ {[%emt 0:0:20]
} 10. Qxc3 {[%emt 0:0:4]} c4 {[%emt 0:2:11]} 11. b3 {[%emt 0:0:0]} Be6 {[%emt 0:0:26]} 12. bxc4 {[%emt 0:1:24]} dxc4 {[%emt 0:0:3]} 13. e3 {[%emt 0:0:45]} Nd7 {[%emt 0:4:2]} 14. Be2 {[%emt 0:2:2]} 0-0 {[%emt 0:0:5]
} 15. Nd2 {[%emt 0:2:56]} b5 {[%emt 0:7:8]} 16. Bf3 {[%emt 0:0:0]} Rab8 {[%emt 0:0:9]} 17. 0-0 {[%emt 0:0:30]} Rfc8 {[%emt 0:6:24]} 18. Rfc1 {[%emt 0:1:24]} Qd8 {[%emt 0:2:16]} 19. Rab1 {[%emt 0:0:52]} a5 {[%emt 0:0:45]
} 20. e4 {[%emt 0:0:35]} f6 {[%emt 0:0:8]} 21. d5 {[%emt 0:0:0]} Bf7 {[%emt 0:0:2]} 22. Bg4 {[%emt 0:0:3]} Rc5 {[%emt 0:2:15]} 23. Bxd7 {[%emt 0:2:47]} Qxd7 {[%emt 0:0:2]} 24. Qxa5 {[%emt 0:2:33]} f5 {[%emt 0:0:3]
} 25. Rxc4 {[%emt 0:1:20]} Rxc4 {[%emt 0:0:37]} 26. Nxc4 {[%emt 0:0:2]
} fxe4 {[%emt 0:0:14]} 27. Ne3 {[%emt 0:0:4]} Qb7 {[%emt 0:0:0]} 28. Qd2 {[%emt 0:1:0]} Ra8 {[%emt 0:0:18]} 29. Rb3 {[%emt 0:2:0]} Qd7 {[%emt 0:0:6]} 30. h3 {[%emt 0:0:22]} Rd8 {[%emt 0:0:10]} 31. Rb4 {[%emt 0:0:0]} Qa7 {[%emt 0:0:3]} 32. Qb2 {[%emt 0:0:14]} Ra8 {[%emt 0:0:19]} 33. Rxb5 {[%emt 0:0:19]} Qxa3 {[%emt 0:0:2]} 34. Qxa3 {[%emt 0:0:15]} Rxa3 {[%emt 0:0:2]
} 35. Rb8+ {[%emt 0:0:6]} Kh7 {[%emt 0:0:1]} 36. Rb7 {[%emt 0:0:3]
} Kg6 {[%emt 0:0:31]} 37. Rb6+ {[%emt 0:0:14]} Kh7 {[%emt 0:0:0]} 38. Kh2 {[%emt 0:0:10]} Rd3 {[%emt 0:0:6]} 39. Rd6 {[%emt 0:0:1]} Rd2 {[%emt 0:0:17]} 40. Kg3 {[%emt 0:0:4]} g6 {[%emt 0:0:24]} 41. h4 {[%emt 0:0:0]} Kg7 {[%emt 0:0:18]} 42. Rd7 {[%emt 0:0:12]} Kf8 {[%emt 0:0:7]} 43. Ng4 {[%emt 0:0:8]} Rxd5 {[%emt 0:0:8]} 44. Rxd5 {[%emt 0:0:4]} Bxd5 {[%emt 0:0:1]
} 45. Nxh6 {[%emt 0:0:4]} Ke7 {[%emt 0:0:20]} 46. Ng4 {[%emt 0:0:6]
} Ke6 {[%emt 0:0:8]} 47. Kf4 {[%emt 0:0:4]} Bc4 {[%emt 0:0:0]} 48. Ne3 {[%emt 0:0:18]} Bd3 {[%emt 0:0:2]} 49. Kg5 {[%emt 0:0:6]} Kf7 {[%emt 0:0:3]} 50. Ng4 {[%emt 0:0:5]} Bc2 {[%emt 0:0:16]} 51. Ne5+ {[%emt 0:0:13]
} Kg7 {[%emt 0:0:5]} 52. g3 {[%emt 0:0:4]} Bb1 {[%emt 0:0:0]} 53. Nc4 {[%emt 0:0:13]} Kf7 {[%emt 0:0:10]} 54. Nd2 {[%emt 0:0:11]} e3 {[%emt 0:0:15]} 55. fxe3 {[%emt 0:0:1]} Bd3 {[%emt 0:0:2]} 56. Nf3 {[%emt 0:0:12]
} Bc2 {[%emt 0:0:12]} 57. Ne5+ {[%emt 0:0:6]} Kg7 {[%emt 0:0:0]} 58. Nc6 {[%emt 0:0:8]} Bb1 {[%emt 0:0:3]} 59. Nd4 {[%emt 0:0:8]} Bd3 {[%emt 0:0:25]} 60. Kf4 {[%emt 0:0:21]} Kf6 {[%emt 0:0:3]} 61. e4 {[%emt 0:0:0]} Bb1 {[%emt 0:0:4]} 62. e5+ {[%emt 0:0:9]} Ke7 {[%emt 0:0:20]} 63. Kg5 {[%emt 0:0:9]} Bd3 {[%emt 0:0:11]} 64. Nb3 {[%emt 0:0:32]} Bb1 {[%emt 0:0:10]
} 65. Nc5 {[%emt 0:0:24]} Bc2 {[%emt 0:0:5]} 66. Kf4 {[%emt 0:0:0]} Bb1 {[%emt 0:0:13]} 67. Ke3 {[%emt 0:0:10]} Bf5 {[%emt 0:0:35]} 68. Kf4 {[%emt 0:0:7]} Bb1 {[%emt 0:0:1]} 69. Nb3 {[%emt 0:0:11]} Ke6 {[%emt 0:0:9]
} 70. Nd4+ {[%emt 0:0:8]} Kd5 {[%emt 0:0:13]} 71. Ne2 {[%emt 0:0:25]
} Ke6 {[%emt 0:0:6]} 72. Kg5 {[%emt 0:0:8]} Kxe5 {[%emt 0:0:0]} 73. Nf4 {[%emt 0:0:1]} Bc2 {[%emt 0:0:14]} 74. g4 {[%emt 0:0:7]} Bd1 {[%emt 0:0:19]} 75. Nxg6+ {[%emt 0:0:6]} Ke6 {[%emt 0:0:1]} 76. Nf4+ {[%emt 0:0:11]
} Kf7 {[%emt 0:0:3]} 77. Nd3 {[%emt 0:0:4]} Kg7 {[%emt 0:0:0]} 78. Ne5 {[%emt 0:0:6]} Ba4 {[%emt 0:0:14]} 79. h5 {[%emt 0:0:18]} Bb5 {[%emt 0:0:11]} 80. Kf5 {[%emt 0:0:11]} Be2 {[%emt 0:0:10]} 81. Kg5 {[%emt 0:0:9]
} Bb5 {[%emt 0:0:1]} 82. Nf3 {[%emt 0:0:7]} Bc6 {[%emt 0:0:0]} 83. Nd4 {[%emt 0:0:1]} Ba4 {[%emt 0:0:7]} 84. Nf5+ {[%emt 0:0:9]} Kh7 {[%emt 0:0:4]} 85. Kh4 {[%emt 0:0:16]} Bc2 {[%emt 0:0:20]} 86. Ne3 {[%emt 0:0:25]
} Bd3 {[%emt 0:0:7]} 87. g5 {[%emt 0:0:13]} Kg7 {[%emt 0:0:0]} 88. Nd5 {[%emt 0:0:5]} Bc4 {[%emt 0:0:17]} 89. Nf4 {[%emt 0:0:4]} Bb3 {[%emt 0:0:5]} 90. Kg4 {[%emt 0:0:16]} Bc2 {[%emt 0:0:21]} 91. Kf3 {[%emt 0:0:19]
} Bd1+ {[%emt 0:0:6]} 92. Ke4 {[%emt 0:0:3]} Bg4 {[%emt 0:0:0]} 93. Ke5 {[%emt 0:0:4]} Bd1 {[%emt 0:0:4]} 94. h6+ {[%emt 0:0:16]} Kh7 {[%emt 0:0:6]} 95. Kf6 {[%emt 0:0:5]} Bc2 {[%emt 0:0:7]} 96. Ne6 {[%emt 0:0:3]
} Bb1 {[%emt 0:0:9]} 97. Nf8+ {[%emt 0:0:14]} Kg8 {[%emt 0:0:0]} 98. g6 {[%emt 0:0:7]} Kh8 {[%emt 0:0:16]} 99. Kg5 {[%emt 0:0:27]} Kg8 {[%emt 0:0:15]} 100. Nd7 {[%emt 0:0:3]} Ba2 {[%emt 0:0:12]} 101. Nf6+ {[%emt 0:0:13]
} 1-0

[Event "FIDE Chesscom Online Nations Cup"]
[White "Saduakassova, Dinara"]
[Black "Dzagnidze, Nana"]
[Site "Online"]
[Round "10"]
[Annotator "ChessBase"]
[Result "1/2-1/2"]
[Date "2020.05.09"]
[WhiteElo "2412"]
[BlackElo "2447"]
[PlyCount "72"]
[TimeControl "1500+10"]

1. e4 {[%emt 0:0:6]} c5 {[%emt 0:0:3]} 2. Nf3 {[%emt 0:0:2]} Nc6 {[%emt 0:0:10]
} 3. d4 {[%emt 0:0:4]} cxd4 {[%emt 0:0:2]} 4. Nxd4 {[%emt 0:0:0]} e6 {[%emt 0:0:2]} 5. Nc3 {[%emt 0:0:2]} a6 {[%emt 0:0:5]} 6. Be2 {[%emt 0:0:16]} Qc7 {[%emt 0:0:4]} 7. 0-0 {[%emt 0:0:6]} Nf6 {[%emt 0:0:0]} 8. Be3 {[%emt 0:0:15]} Bd6 {[%emt 0:3:6]} 9. f4 {[%emt 0:2:22]} Nxd4 {[%emt 0:0:23]
} 10. Qxd4 {[%emt 0:0:10]} e5 {[%emt 0:0:5]} 11. Qd2 {[%emt 0:0:0]} exf4 {[%emt 0:1:23]} 12. Bxf4 {[%emt 0:0:5]} Bxf4 {[%emt 0:0:3]} 13. Rxf4 {[%emt 0:0:15]} d6 {[%emt 0:1:4]} 14. Rd1 {[%emt 0:3:28]} Qc5+ {[%emt 0:0:4]
} 15. Kf1 {[%emt 0:1:38]} Be6 {[%emt 0:2:19]} 16. Qxd6 {[%emt 0:0:13]
} Qxd6 {[%emt 0:1:44]} 17. Rxd6 {[%emt 0:0:3]} Rc8 {[%emt 0:0:0]} 18. e5 {[%emt 0:3:27]} Nd7 {[%emt 0:0:12]} 19. Bg4 {[%emt 0:0:22]} Bxg4 {[%emt 0:0:59]} 20. Rxg4 {[%emt 0:0:3]} Nxe5 {[%emt 0:0:40]} 21. Rb4 {[%emt 0:2:11]
} Nc4 {[%emt 0:3:42]} 22. Rd3 {[%emt 0:0:8]} b5 {[%emt 0:0:0]} 23. a4 {[%emt 0:0:33]} bxa4 {[%emt 0:0:40]} 24. Nd5 {[%emt 0:1:50]} Ne5 {[%emt 0:3:5]} 25. Re3 {[%emt 0:0:37]} f6 {[%emt 0:0:3]} 26. Rb7 {[%emt 0:0:0]} Rd8 {[%emt 0:0:14]} 27. Nc7+ {[%emt 0:1:54]} Kf7 {[%emt 0:0:12]} 28. Nxa6+ {[%emt 0:0:8]} Kg6 {[%emt 0:0:6]} 29. Nc5 {[%emt 0:1:10]} Rhe8 {[%emt 0:5:39]
} 30. Rg3+ {[%emt 0:2:11]} Kf5 {[%emt 0:0:4]} 31. Nd3 {[%emt 0:0:23]
} Nxd3 {[%emt 0:1:1]} 32. Rxd3 {[%emt 0:1:30]} g5 {[%emt 0:0:0]} 33. Rxd8 {[%emt 0:0:27]} Rxd8 {[%emt 0:0:2]} 34. Ke2 {[%emt 0:0:1]} h5 {[%emt 0:0:16]} 35. Rb5+ {[%emt 0:0:3]} Ke6 {[%emt 0:0:52]} 36. Rb4 {[%emt 0:0:8]
} Ra8 {[%emt 0:0:4]} 1/2-1/2

[Event "FIDE Chesscom Online Nations Cup"]
[White "Krush, Irina"]
[Black "Ju, Wenjun"]
[Site "Online"]
[Round "10"]
[Annotator "RC"]
[Result "1/2-1/2"]
[Date "2020.05.09"]
[WhiteElo "2392"]
[BlackElo "2610"]
[PlyCount "70"]
[TimeControl "1500+10"]

1. d4 {[%emt 0:0:5]} Nf6 {[%emt 0:0:3]} 2. c4 {[%emt 0:0:3]} e6 {[%emt 0:0:0]} 3. Nc3 {[%emt 0:0:3]} Bb4 {[%emt 0:0:4]} 4. e3 {[%emt 0:0:3]} 0-0 {[%emt 0:0:10]} 5. Bd3 {[%emt 0:0:7]} d5 {[%emt 0:0:26]} 6. Nge2 {[%emt 0:0:0]} c5 {[%emt 0:0:47]} 7. a3 {[%emt 0:0:27]} Bxc3+ {[%emt 0:0:5]} 8. bxc3 {[%emt 0:0:25]} b6 {[%emt 0:1:56]} 9. cxd5 {[%emt 0:0:20]} exd5 {[%emt 0:0:4]
} 10. 0-0 {[%emt 0:0:4]} Ba6 {[%emt 0:0:15]} 11. f3 {[%emt 0:0:0]} Bxd3 {[%emt 0:0:7]} 12. Qxd3 {[%emt 0:0:3]} Re8 {[%emt 0:0:5]} 13. Ng3 {[%emt 0:0:50]} Nc6 {[%emt 0:0:16]} 14. Bb2 {[%emt 0:0:11]} h5 {[%emt 0:1:33]
} 15. Rae1 {[%emt 0:0:35]} Rc8 {[%emt 0:2:17]} 16. e4 {[%emt 0:0:0]} cxd4 {[%emt 0:0:5]} 17. cxd4 {[%emt 0:0:4]} dxe4 {[%emt 0:0:2]} 18. fxe4 {[%emt 0:0:4]} Ne5 {[%emt 0:0:2]} 19. Qb3 {[%emt 0:8:1]} Nc4 {[%emt 0:1:11]
} 20. d5 {[%emt 0:0:16]} Nxb2 {[%emt 0:1:52]} 21. Qxb2 {[%emt 0:0:9]
} Qd6 {[%emt 0:0:12]} 22. e5 {[%emt 0:6:17]} Qc5+ {[%emt 0:0:0]} 23. Kh1 {[%emt 0:0:1]} Nxd5 {[%emt 0:0:5]} 24. Nxh5 {[%emt 0:0:2]} Re6 {[%emt 0:3:20]} 25. Qe2 {[%emt 0:1:11]} Rf8 {[%emt 0:2:42]} 26. Qg4 {[%emt 0:1:28]
} Rg6 {[%emt 0:0:4]} 27. Qf3 {[%emt 0:0:3]} Rh6 {[%emt 0:0:0]} 28. Ng3 {[%emt 0:0:14]} Ne7 {[%emt 0:0:38]} 29. Re4 {[%emt 0:2:29]} Qc6 {[%emt 0:0:47]} 30. Qf2 {[%emt 0:0:35]} Qe6 {[%emt 0:0:52]} 31. Re3 {[%emt 0:0:44]
} b5 {[%emt 0:0:44]} 32. Qe2 {[%emt 0:0:36]} Qc4 {[%emt 0:0:0]} 33. Qf2 {[%emt 0:0:29]} Qe6 {[%emt 0:0:54]} 34. Qe2 {[%emt 0:0:3]} Qc4 {[%emt 0:0:39]} 35. Qf2 {[%emt 0:0:2]} Qe6 {[%emt 0:0:49]} 1/2-1/2